fUSD/lending_fUSD_20240220
["ID","MTS","AMOUNT","RATE_DAILY","PERIOD"]
[314563757,1708427445264,-500.0,0.00035616,2]
[314563758,1708427445273,-566.91,0.00035616,2]
[314563760,1708427445283,-500.0,0.00035616,2]
[314563761,1708427445293,-2400.83,0.00035616,2]
[314563762,1708427445307,-752.07,0.00035616,2]
[314563763,1708427445316,-500.0,0.00035616,2]
[314563764,1708427445325,-500.0,0.00035616,2]
[314563765,1708427445336,-879.46,0.00035616,2]
[314563766,1708427445345,-1430.12,0.00035616,2]
[314563768,1708427445354,-665.32,0.00035616,2]
[314563770,1708427445363,-1767.41,0.00035616,2]
[314563772,1708427445373,-500.0,0.00035616,2]
[314563774,1708427445383,-2089.5,0.00035616,2]
[314563776,1708427445392,-960.91,0.00035616,2]
[314563778,1708427445402,-500.0,0.00035616,2]
[314563781,1708427445411,-500.0,0.00035616,2]
[314563783,1708427445419,-500.0,0.00035616,2]
[314563785,1708427445429,-1789.71,0.00035616,2]
[314563787,1708427445439,-500.0,0.00035616,2]
[314563789,1708427445448,-500.0,0.00035616,2]
[314563791,1708427445458,-500.0,0.00035616,2]
[314563793,1708427445468,-500.0,0.00035616,2]
[314563795,1708427445477,-1652.31,0.00035616,2]
[314563797,1708427445486,-933.13,0.00035616,2]
[314563799,1708427445496,-500.0,0.00035616,2]
[314563801,1708427445505,-500.0,0.00035616,2]
[314563803,1708427445514,-563.6,0.00035616,2]
[314563805,1708427445523,-500.0,0.00035616,2]
[314563806,1708427445532,-500.0,0.00035616,2]
[314563807,1708427445541,-500.0,0.00035616,2]
[314563808,1708427445553,-500.0,0.00035616,2]
[314563809,1708427445562,-500.0,0.00035616,2]
[314563810,1708427445572,-500.0,0.00035616,2]
[314563811,1708427445581,-1272.03,0.00035616,2]
[314563812,1708427445590,-500.0,0.00035616,2]
[314563813,1708427445599,-3061.61,0.00035616,2]
[314563814,1708427445608,-500.0,0.00035616,2]
[314563815,1708427445618,-587.26,0.00035616,2]
[314563816,1708427445627,-500.0,0.00035616,2]
[314563817,1708427445637,-1289.79,0.00035616,2]
[314563818,1708427445646,-500.0,0.00035616,2]
[314563819,1708427445656,-500.0,0.00035616,2]
[314563820,1708427445666,-500.0,0.00035616,2]
[314563821,1708427445676,-828.44,0.00035616,2]
[314563822,1708427445686,-1403.91,0.00035616,2]
[314563823,1708427445695,-286.57332618,0.00035616,2]
[314563824,1708427445704,-500.0,0.00035616,2]
[314563825,1708427445714,-500.0,0.00035616,2]
[314563826,1708427445723,-500.0,0.00035616,2]
[314563827,1708427445732,-500.0,0.00035616,2]
[314563828,1708427445741,-1146.9,0.00035616,2]
[314563829,1708427445750,-500.0,0.00035616,2]
[314563830,1708427445759,-583.22,0.00035616,2]
[314563831,1708427445768,-697.99,0.00035616,2]
[314563832,1708427445778,-500.0,0.00035616,2]
[314563833,1708427445787,-500.0,0.00035616,2]
[314563834,1708427445797,-500.0,0.00035616,2]
[314563835,1708427445806,-689.73,0.00035616,2]
[314563836,1708427445816,-2139.17,0.00035616,2]
[314563837,1708427445826,-500.0,0.00035616,2]
[314563838,1708427445836,-892.31,0.00035616,2]
[314563839,1708427445846,-500.0,0.00035616,2]
[314563840,1708427445854,-500.0,0.00035616,2]
[314563841,1708427445862,-998.24,0.00035616,2]
[314563842,1708427445871,-500.0,0.00035616,2]
[314563843,1708427445880,-500.0,0.00035616,2]
[314563844,1708427445889,-500.0,0.00035616,2]
[314563845,1708427445899,-500.0,0.00035616,2]
[314563846,1708427445907,-2361.36,0.00035616,2]
[314563848,1708427445916,-500.0,0.00035616,2]
[314563850,1708427445925,-22407.5,0.00035616,2]
[314563852,1708427445934,-500.0,0.00035616,2]
[314563854,1708427445944,-494.64841614,0.00035616,2]
[314563856,1708427445953,-1231.34,0.00035616,2]
[314563858,1708427445963,-500.0,0.00035616,2]
[314563860,1708427445972,-500.0,0.00035616,2]
[314563862,1708427445982,-500.0,0.00035616,2]
[314563864,1708427445991,-5240.65,0.00035616,2]
[314563866,1708427446001,-500.0,0.00035616,2]
[314563868,1708427446011,-737.39,0.00035616,2]
[314563870,1708427446020,-1250.09,0.00035616,2]
[314563872,1708427446030,-905.02,0.00035616,2]
[314563873,1708427446039,-500.0,0.00035616,2]
[314563874,1708427446050,-500.0,0.00035616,2]
[314563875,1708427446059,-500.0,0.00035616,2]
[314563876,1708427446069,-500.0,0.00035616,2]
[314563877,1708427446079,-500.0,0.00035616,2]
[314563878,1708427446089,-500.0,0.00035616,2]
[314563879,1708427446098,-621.23,0.00035616,2]
[314563880,1708427446107,-3651.32,0.00035616,2]
[314563881,1708427446117,-500.0,0.00035616,2]
[314563882,1708427446126,-500.0,0.00035616,2]
[314563883,1708427446136,-500.0,0.00035616,2]
[314563884,1708427446145,-500.0,0.00035616,2]
[314563885,1708427446154,-828.41,0.00035616,2]
[314563886,1708427446163,-500.0,0.00035616,2]
[314563887,1708427446173,-500.0,0.00035616,2]
[314563888,1708427446182,-2491.46,0.00035616,2]
[314563889,1708427446192,-500.0,0.00035616,2]
[314563890,1708427446202,-500.0,0.00035616,2]
[314563891,1708427446211,-500.0,0.00035616,2]
[314563892,1708427446220,-500.0,0.00035616,2]
[314563893,1708427446230,-500.0,0.00035616,2]
[314563894,1708427446239,-500.0,0.00035616,2]
[314563895,1708427446248,-500.0,0.00035616,2]
[314563896,1708427446258,-794.1,0.00035616,2]
[314563897,1708427446266,-500.0,0.00035616,2]
[314563898,1708427446276,-500.0,0.00035616,2]
[314563899,1708427446288,-500.0,0.00035616,2]
[314563900,1708427446299,-620.77,0.00035616,2]
[314563901,1708427446308,-515.74564032,0.00035616,2]
[314563902,1708427446317,-500.0,0.00035616,2]
[314563903,1708427446327,-247.07380186,0.00035616,2]
[314563904,1708427446337,-500.0,0.00035616,2]
[314563905,1708427446346,-691.34,0.00035616,2]
[314563906,1708427446355,-917.31,0.00035616,2]
[314563907,1708427446364,-500.0,0.00035616,2]
[314563908,1708427446374,-978.17,0.00035616,2]
[314563909,1708427446385,-500.0,0.00035616,2]
[314563910,1708427446394,-500.0,0.00035616,2]
[314563911,1708427446403,-500.0,0.00035616,2]
[314563912,1708427446412,-536.55397008,0.00035616,2]
[314563913,1708427446422,-500.0,0.00035616,2]
[314563914,1708427446431,-524.77,0.00035616,2]
[314563915,1708427446441,-500.0,0.00035616,2]
[314563916,1708427446451,-987.75,0.00035616,2]
[314563917,1708427446460,-500.0,0.00035616,2]
[314563918,1708427446469,-5452.34,0.00035616,2]
[314563919,1708427446479,-500.0,0.00035616,2]
[314563920,1708427446488,-877.16,0.00035616,2]
[314563921,1708427446497,-1580.32,0.00035616,2]
[314563922,1708427446506,-500.0,0.00035616,2]
[314563923,1708427446515,-958.26,0.00035616,2]
[314563924,1708427446525,-500.0,0.00035616,2]
[314563925,1708427446537,-500.0,0.00035616,2]
[314563926,1708427446549,-609.32786303,0.00035616,2]
[314563927,1708427446558,-1525.13,0.00035616,2]
[314563928,1708427446569,-500.0,0.00035616,2]
[314563929,1708427446579,-500.0,0.00035616,2]
[314563930,1708427446588,-1256.44,0.00035616,2]
[314563931,1708427446598,-1096.42,0.00035616,2]
[314563932,1708427446607,-3359.16,0.00035616,2]
[314563933,1708427446617,-500.0,0.00035616,2]
[314563934,1708427446627,-500.0,0.00035616,2]
[314563935,1708427446636,-500.0,0.00035616,2]
[314563936,1708427446646,-1092.82,0.00035616,2]
[314563937,1708427446655,-500.0,0.00035616,2]
[314563938,1708427446665,-593.06360572,0.00035616,2]
[314563939,1708427446674,-6358.79,0.00035616,2]
[314563940,1708427446685,-500.0,0.00035616,2]
[314563941,1708427446695,-632.36,0.00035616,2]
[314563942,1708427446704,-660.95,0.00035616,2]
[314563943,1708427446714,-876.09,0.00035616,2]
[314563944,1708427446723,-500.0,0.00035616,2]
[314563945,1708427446733,-500.0,0.00035616,2]
[314563946,1708427446742,-712.67,0.00035616,2]
[314563947,1708427446751,-981.15,0.00035616,2]
[314563948,1708427446761,-1834.75,0.00035616,2]
[314563949,1708427446770,-500.0,0.00035616,2]
[314563950,1708427446780,-814.65,0.00035616,2]
[314563951,1708427446790,-839.19,0.00035616,2]
[314563952,1708427446802,-756.18,0.00035616,2]
[314563953,1708427446811,-500.0,0.00035616,2]
[314563954,1708427446821,-803.09,0.00035616,2]
[314563955,1708427446830,-1211.27,0.00035616,2]
[314563956,1708427446839,-500.0,0.00035616,2]
[314563957,1708427446848,-500.0,0.00035616,2]
[314563958,1708427446858,-500.0,0.00035616,2]
[314563959,1708427446867,-1684.31,0.00035616,2]
[314563960,1708427446877,-500.0,0.00035616,2]
[314563961,1708427446886,-884.49,0.00035616,2]
[314563962,1708427446896,-1671.35,0.00035616,2]
[314563963,1708427446905,-500.0,0.00035616,2]
[314563964,1708427446914,-1118.98,0.00035616,2]
[314563965,1708427446923,-500.0,0.00035616,2]
[314563966,1708427446933,-588.04,0.00035616,2]
[314563967,1708427446942,-786.37,0.00035616,2]
[314563968,1708427446951,-2681.71,0.00035616,2]
[314563969,1708427446960,-500.0,0.00035616,2]
[314563970,1708427446970,-903.14,0.00035616,2]
[314563971,1708427446980,-502.91,0.00035616,2]
[314563972,1708427446990,-760.65,0.00035616,2]
[314563973,1708427446999,-500.0,0.00035616,2]
[314563974,1708427447009,-1499.99,0.00035616,2]
[314563975,1708427447019,-3527.82,0.00035616,2]
[314563976,1708427447028,-751.42,0.00035616,2]
[314563977,1708427447037,-500.0,0.00035616,2]
[314563978,1708427447046,-883.74,0.00035616,2]
[314563979,1708427447056,-643.79,0.00035616,2]
[314563980,1708427447065,-500.0,0.00035616,2]
[314563981,1708427447075,-1179.63,0.00035616,2]
[314563982,1708427447084,-500.0,0.00035616,2]
[314563983,1708427447093,-1174.83,0.00035616,2]
[314563984,1708427447103,-981.71,0.00035616,2]
[314563985,1708427447112,-500.0,0.00035616,2]
[314563986,1708427447121,-500.0,0.00035616,2]
[314563987,1708427447130,-500.0,0.00035616,2]
[314563988,1708427447139,-1124.09,0.00035616,2]
[314563989,1708427447149,-500.0,0.00035616,2]
[314563990,1708427447158,-500.0,0.00035616,2]
[314563991,1708427447167,-500.0,0.00035616,2]
[314563992,1708427447176,-500.0,0.00035616,2]
[314563993,1708427447185,-981.8,0.00035616,2]
[314563994,1708427447194,-1368.75,0.00035616,2]
[314563995,1708427447203,-1063.11,0.00035616,2]
[314563996,1708427447212,-1562.64,0.00035616,2]
[314563997,1708427447221,-2359.03,0.00035616,2]
[314563998,1708427447230,-988.24,0.00035616,2]
[314563999,1708427447239,-4353.95,0.00035616,2]
[314564000,1708427447249,-500.0,0.00035616,2]
[314564001,1708427447258,-500.0,0.00035616,2]
[314564002,1708427447267,-500.0,0.00035616,2]
[314564003,1708427447275,-500.0,0.00035616,2]
[314564004,1708427447285,-500.0,0.00035616,2]
[314564005,1708427447294,-1235.11,0.00035616,2]
[314564006,1708427447307,-1532.53,0.00035616,2]
[314564007,1708427447316,-500.0,0.00035616,2]
[314564008,1708427447325,-500.0,0.00035616,2]
[314564009,1708427447334,-500.0,0.00035616,2]
[314564010,1708427447344,-720.46,0.00035616,2]
[314564011,1708427447353,-1630.0,0.00035616,2]
[314564012,1708427447362,-500.0,0.00035616,2]
[314564013,1708427447371,-1361.49,0.00035616,2]
[314564014,1708427447380,-2651.4,0.00035616,2]
[314564015,1708427447390,-916.75,0.00035616,2]
[314564016,1708427447399,-915.49,0.00035616,2]
[314564017,1708427447408,-500.0,0.00035616,2]
[314564018,1708427447417,-720.75,0.00035616,2]
[314564019,1708427447425,-934.43,0.00035616,2]
[314564020,1708427447435,-500.0,0.00035616,2]
[314564021,1708427447444,-500.0,0.00035616,2]
[314564022,1708427447453,-500.0,0.00035616,2]
[314564023,1708427447462,-500.0,0.00035616,2]
[314564024,1708427447471,-500.0,0.00035616,2]
[314564025,1708427447480,-500.0,0.00035616,2]
[314564026,1708427447489,-684.05,0.00035616,2]
[314564027,1708427447498,-500.0,0.00035616,2]
[314564028,1708427447507,-8391.34,0.00035616,2]
[314564029,1708427447515,-500.0,0.00035616,2]
[314564030,1708427447525,-744.05,0.00035616,2]
[314564031,1708427447534,-4868.64,0.00035616,2]
[314564032,1708427447543,-500.0,0.00035616,2]
[314564033,1708427447554,-500.0,0.00035616,2]
[314564034,1708427447563,-500.0,0.00035616,2]
[314564035,1708427447572,-500.0,0.00035616,2]
[314564036,1708427447581,-500.0,0.00035616,2]
[314564037,1708427447591,-500.0,0.00035616,2]
[314564038,1708427447601,-903.33,0.00035616,2]
[314564039,1708427447610,-500.0,0.00035616,2]
[314564040,1708427447620,-668.27,0.00035616,2]
[314564041,1708427447630,-889.77,0.00035616,2]
[314564042,1708427447639,-500.0,0.00035616,2]
[314564043,1708427447649,-849.91,0.00035616,2]
[314564044,1708427447658,-2672.49,0.00035616,2]
[314564045,1708427447667,-500.0,0.00035616,2]
[314564046,1708427447677,-500.0,0.00035616,2]
[314564047,1708427447687,-734.66,0.00035616,2]
[314564048,1708427447696,-748.35,0.00035616,2]
[314564049,1708427447706,-532.6,0.00035616,2]
[314564050,1708427447715,-500.0,0.00035616,2]
[314564051,1708427447725,-793.05,0.00035616,2]
[314564052,1708427447734,-500.0,0.00035616,2]
[314564053,1708427447744,-2860.58,0.00035616,2]
[314564054,1708427447753,-500.0,0.00035616,2]
[314564055,1708427447763,-500.0,0.00035616,2]
[314564056,1708427447773,-691.36,0.00035616,2]
[314564057,1708427447782,-1156.44,0.00035616,2]
[314564058,1708427447792,-500.0,0.00035616,2]
[314564059,1708427447804,-500.0,0.00035616,2]
[314564060,1708427447814,-500.0,0.00035616,2]
[314564061,1708427447823,-500.0,0.00035616,2]
[314564062,1708427447833,-559.43,0.00035616,2]
[314564063,1708427447843,-500.0,0.00035616,2]
[314564064,1708427447852,-500.0,0.00035616,2]
[314564065,1708427447862,-500.0,0.00035616,2]
[314564066,1708427447871,-1890.49,0.00035616,2]
[314564067,1708427447880,-396.55,0.00035616,2]
[314564068,1708427447890,-527.51,0.00035616,2]
[314564069,1708427447901,-500.0,0.00035616,2]
[314564070,1708427447910,-1429.88,0.00035616,2]
[314564071,1708427447919,-500.0,0.00035616,2]
[314564072,1708427447929,-500.0,0.00035616,2]
[314564073,1708427447939,-500.0,0.00035616,2]
[314564074,1708427447949,-931.24,0.00035616,2]
[314564075,1708427447960,-786.44,0.00035616,2]
[314564076,1708427447969,-578.86,0.00035616,2]
[314564077,1708427447979,-2717.05,0.00035616,2]
[314564078,1708427447988,-967.83,0.00035616,2]
[314564079,1708427447997,-210.46890146,0.00035627,7]
[314564080,1708427448006,-151.0212031,0.00035648,2]
[314564081,1708427448016,-6703.877459,0.000357,2]
[314564082,1708427448026,-1452.3764821,0.00035706,2]
[314564083,1708427448035,-300.0,0.00035731,2]
[314564084,1708427448044,-1522.28556986,0.00035745,8]
[314564085,1708427448055,-151.0212031,0.00035748,2]
[314564086,1708427448065,-150.0,0.00035785,2]
[314564087,1708427448074,-992.17,0.00035798,2]
[314564088,1708427448083,-175.15433306,0.00035808,2]
[314564089,1708427448093,-150.0,0.00035833,2]
[314564090,1708427448102,-150.0,0.00035833,2]
[314564091,1708427448111,-151.0212031,0.00035848,2]
[314564092,1708427448121,-1522.28556981,0.0003585,8]
[314564093,1708427448131,-150.0,0.00035857,2]
[314564094,1708427448140,-182.14432098,0.00035862,2]
[314564095,1708427448150,-1500.0,0.00035863,2]
[314564096,1708427448159,-210.46890146,0.00035864,7]
[314564097,1708427448169,-150.0,0.00035867,2]
[314564098,1708427448179,-150.0,0.00035871,2]
[314564099,1708427448188,-1000.0,0.00035874,2]
[314564100,1708427448198,-150.0,0.00035877,2]
[314564101,1708427448208,-1500.0,0.00035877,2]
[314564102,1708427448218,-150.0,0.00035877,2]
[314564103,1708427448227,-181.50939022,0.0003588,2]
[314564104,1708427448236,-150.0,0.00035883,2]
[314564105,1708427448246,-300.0,0.00035885,2]
[314564106,1708427448255,-6580.4665294,0.00035886,2]
[314564107,1708427448265,-2542.1214746,0.00035886,2]
[314564108,1708427448275,-136046.7730561,0.00035886,2]
[314564109,1708427448286,-6636.9065286,0.00035886,2]
[314564110,1708427448296,-569.0983937,0.00035886,2]
[314564111,1708427448305,-2869.7162498,0.00035886,2]
[314564112,1708427448315,-150.0,0.00035888,2]
[314564113,1708427448324,-294204.32114468,0.0003589,3]
[314564114,1708427448708,-639.95714626,0.0003589,3]
[314564115,1708427448720,-13057.33362789,0.0003589,3]
[314564116,1708427448737,-1751.19310063,0.0003589,3]
[314564117,1708427448757,-1360.3981145,0.0003589,3]
[314564118,1708427448839,-84852.89568362,0.0003589,3]
[314564119,1708427448864,-61185.26909727,0.0003589,3]
[314564120,1708427448877,-43192.5,0.0003589,3]
[314564121,1708427448889,-49451.124488,0.0003589,3]
[314564122,1708427448918,-608.46,0.0003589,3]
[314564123,1708427448945,-34008.90714327,0.0003589,3]
[314564124,1708427449234,-208.8738167,0.00034659,4]
[314564125,1708427449244,-500.0,0.00035616,2]
[314564126,1708427449254,-6747.41637474,0.0003589,3]
[314564127,1708427449267,-571421.64605248,0.0003589,3]
[314564128,1708427449277,-500.0,0.0003589,2]
[314564129,1708427449288,-500.0,0.0003589,2]
[314564130,1708427449300,-500.0,0.0003589,2]
[314564131,1708427449310,-500.0,0.0003589,2]
[314564132,1708427449320,-500.0,0.0003589,2]
[314564133,1708427449329,-500.0,0.0003589,2]
[314564134,1708427449340,-500.0,0.0003589,2]
[314564135,1708427449349,-500.0,0.0003589,2]
[314564136,1708427449359,-594.84753143,0.0003589,2]
[314564137,1708427449369,-406.24650244,0.0003589,2]
[314564138,1708427449380,-500.0,0.0003589,2]
[314564139,1708427449390,-500.0,0.0003589,2]
[314564140,1708427449400,-500.0,0.0003589,2]
[314564141,1708427449705,-500.0,0.0003589,2]
[314564142,1708427449715,-500.0,0.0003589,2]
[314564143,1708427449725,-500.0,0.0003589,2]
[314564144,1708427449734,-500.0,0.0003589,2]
[314564145,1708427449743,-500.0,0.0003589,2]
[314564146,1708427449753,-235.03385207,0.0003589,2]
[314564147,1708427449762,-500.0,0.0003589,2]
[314564148,1708427449771,-500.0,0.0003589,2]
[314564149,1708427449781,-500.0,0.0003589,2]
[314564150,1708427449791,-191.59570071,0.0003589,2]
[314564151,1708427449802,-646.405095,0.0003589,2]
[314564152,1708427449812,-500.0,0.0003589,2]
[314564153,1708427449822,-500.0,0.0003589,2]
[314564154,1708427449831,-500.0,0.0003589,2]
[314564155,1708427449841,-500.0,0.0003589,2]
[314564156,1708427449850,-500.0,0.0003589,2]
[314564157,1708427449859,-500.0,0.0003589,2]
[314564158,1708427449869,-500.0,0.0003589,2]
[314564159,1708427449879,-500.0,0.0003589,2]
[314564160,1708427449889,-500.0,0.0003589,2]
[314564161,1708427449899,-500.0,0.0003589,2]
[314564162,1708427449909,-500.0,0.0003589,2]
[314564163,1708427449918,-500.0,0.0003589,2]
[314564164,1708427449928,-500.0,0.0003589,2]
[314564165,1708427449938,-500.0,0.0003589,2]
[314564166,1708427449949,-500.0,0.0003589,2]
[314564167,1708427449959,-500.0,0.0003589,2]
[314564168,1708427449969,-500.0,0.0003589,2]
[314564169,1708427449979,-521.08,0.0003589,2]
[314564170,1708427449989,-500.0,0.0003589,2]
[314564171,1708427449998,-500.0,0.0003589,2]
[314564172,1708427450008,-500.0,0.0003589,2]
[314564173,1708427450022,-800.76,0.0003589,2]
[314564174,1708427450033,-500.0,0.0003589,2]
[314564175,1708427450043,-500.0,0.0003589,2]
[314564176,1708427450054,-500.0,0.0003589,2]
[314564177,1708427450064,-500.0,0.0003589,2]
[314564178,1708427450075,-500.0,0.0003589,2]
[314564179,1708427450085,-500.0,0.0003589,2]
[314564180,1708427450095,-500.0,0.0003589,2]
[314564181,1708427450105,-500.0,0.0003589,2]
[314564182,1708427450116,-500.0,0.0003589,2]
[314564183,1708427450125,-500.0,0.0003589,2]
[314564184,1708427450135,-612.46411552,0.0003589,2]
[314564185,1708427450145,-500.0,0.0003589,2]
[314564186,1708427450155,-1218.39,0.0003589,2]
[314564187,1708427450165,-500.0,0.0003589,2]
[314564188,1708427450175,-500.0,0.0003589,2]
[314564189,1708427450184,-500.0,0.0003589,2]
[314564190,1708427450194,-500.0,0.0003589,2]
[314564191,1708427450203,-500.0,0.0003589,2]
[314564192,1708427450213,-500.0,0.0003589,2]
[314564193,1708427450223,-1216.44,0.0003589,2]
[314564194,1708427450233,-500.0,0.0003589,2]
[314564195,1708427450242,-500.0,0.0003589,2]
[314564196,1708427450252,-500.0,0.0003589,2]
[314564197,1708427450262,-500.0,0.0003589,2]
[314564198,1708427450272,-500.0,0.0003589,2]
[314564199,1708427450282,-500.0,0.0003589,2]
[314564200,1708427450295,-500.0,0.0003589,2]
[314564201,1708427450307,-689.62,0.0003589,2]
[314564202,1708427450316,-500.0,0.0003589,2]
[314564203,1708427450327,-500.0,0.0003589,2]
[314564204,1708427450336,-500.0,0.0003589,2]
[314564205,1708427450346,-500.0,0.0003589,2]
[314564206,1708427450355,-500.0,0.0003589,2]
[314564207,1708427450365,-500.0,0.0003589,2]
[314564208,1708427450375,-500.0,0.0003589,2]
[314564209,1708427450384,-500.0,0.0003589,2]
[314564210,1708427450393,-500.0,0.0003589,2]
[314564211,1708427450403,-500.0,0.0003589,2]
[314564212,1708427450413,-500.0,0.0003589,2]
[314564213,1708427450422,-500.0,0.0003589,2]
[314564214,1708427450432,-500.0,0.0003589,2]
[314564215,1708427450442,-500.0,0.0003589,2]
[314564216,1708427450452,-500.0,0.0003589,2]
[314564217,1708427450462,-589.5293012,0.0003589,2]
[314564218,1708427450472,-500.0,0.0003589,2]
[314564219,1708427450481,-500.0,0.0003589,2]
[314564220,1708427450490,-500.0,0.0003589,2]
[314564221,1708427450499,-500.0,0.0003589,2]
[314564222,1708427450539,-500.0,0.0003589,2]
[314564223,1708427450550,-500.0,0.0003589,2]
[314564224,1708427450560,-500.0,0.0003589,2]
[314564225,1708427450569,-500.0,0.0003589,2]
[314564226,1708427450579,-528.52,0.0003589,2]
[314564227,1708427450588,-406.10972284,0.0003589,2]
[314564228,1708427450599,-500.0,0.0003589,2]
[314564229,1708427450609,-500.0,0.0003589,2]
[314564230,1708427450619,-500.0,0.0003589,2]
[314564231,1708427450628,-500.0,0.0003589,2]
[314564232,1708427450638,-500.0,0.0003589,2]
[314564233,1708427450647,-500.0,0.0003589,2]
[314564234,1708427450657,-500.0,0.0003589,2]
[314564235,1708427450666,-500.0,0.0003589,2]
[314564236,1708427450676,-500.0,0.0003589,2]
[314564237,1708427450686,-500.0,0.0003589,2]
[314564238,1708427450695,-500.0,0.0003589,2]
[314564239,1708427450705,-500.0,0.0003589,2]
[314564240,1708427450716,-571.38,0.0003589,2]
[314564241,1708427450726,-500.0,0.0003589,2]
[314564242,1708427450737,-500.0,0.0003589,2]
[314564243,1708427450746,-500.0,0.0003589,2]
[314564244,1708427450756,-500.0,0.0003589,2]
[314564245,1708427450767,-500.0,0.0003589,2]
[314564246,1708427450778,-500.0,0.0003589,2]
[314564247,1708427450787,-500.0,0.0003589,2]
[314564248,1708427450798,-500.0,0.0003589,2]
[314564249,1708427450809,-500.0,0.0003589,2]
[314564250,1708427450818,-500.0,0.0003589,2]
[314564251,1708427450828,-500.0,0.0003589,2]
[314564252,1708427450838,-500.0,0.0003589,2]
[314564253,1708427450847,-500.0,0.0003589,2]
[314564254,1708427450857,-500.0,0.0003589,2]
[314564255,1708427450867,-500.0,0.0003589,2]
[314564256,1708427450877,-500.0,0.0003589,2]
[314564257,1708427450888,-500.0,0.0003589,2]
[314564258,1708427450898,-500.0,0.0003589,2]
[314564259,1708427450908,-500.0,0.0003589,2]
[314564260,1708427450918,-500.0,0.0003589,2]
[314564261,1708427450928,-500.0,0.0003589,2]
[314564262,1708427450939,-500.0,0.0003589,2]
[314564263,1708427450949,-500.0,0.0003589,2]
[314564264,1708427450959,-676.64,0.0003589,2]
[314564265,1708427450970,-500.0,0.0003589,2]
[314564266,1708427450980,-500.0,0.0003589,2]
[314564267,1708427450990,-500.0,0.0003589,2]
[314564268,1708427451000,-546.05,0.0003589,2]
[314564269,1708427451010,-576.24386658,0.0003589,2]
[314564270,1708427451020,-500.0,0.0003589,2]
[314564271,1708427451030,-553.09,0.0003589,2]
[314564272,1708427451051,-500.0,0.0003589,2]
[314564273,1708427451064,-500.0,0.0003589,2]
[314564274,1708427451075,-500.0,0.0003589,2]
[314564275,1708427451086,-500.0,0.0003589,2]
[314564276,1708427451096,-500.0,0.0003589,2]
[314564277,1708427451107,-500.0,0.0003589,2]
[314564278,1708427451117,-500.0,0.0003589,2]
[314564279,1708427451127,-500.0,0.0003589,2]
[314564280,1708427451136,-500.0,0.0003589,2]
[314564281,1708427451147,-500.0,0.0003589,2]
[314564282,1708427451157,-174.67162582,0.0003589,2]
[314564283,1708427451167,-500.0,0.0003589,2]
[314564284,1708427451177,-500.0,0.0003589,2]
[314564285,1708427451187,-500.0,0.0003589,2]
[314564286,1708427451197,-500.0,0.0003589,2]
[314564287,1708427451207,-588.62752024,0.0003589,2]
[314564288,1708427451217,-500.0,0.0003589,2]
[314564289,1708427451226,-500.0,0.0003589,2]
[314564290,1708427451236,-500.0,0.0003589,2]